bitfinex/quotes_ETHUSD_20240721
["timestamp","ask_amount","ask_price","bid_price","bid_amount"]
[1721535386392,0.59626621,3515.7,3515.6,0.13304871]
[1721535388031,0.59626621,3515.8,3515.6,0.13304871]
[1721535388644,0.59626621,3515.7,3515.6,0.13304871]
[1721535388992,0.59626621,3515.8,3515.6,0.13304871]
[1721535389502,0.59626621,3515.7,3515.6,0.13304871]
[1721535390930,0.59626621,3515.8,3515.6,0.13304871]
[1721535391429,0.59626621,3515.8,3515.7,2.3537]
[1721535392135,0.59626621,3515.8,3515.7,2.48674544]
[1721535393002,0.59626621,3515.8,3515.7,3.08336558]
[1721535395304,0.59626621,3515.8,3515.7,5.92774558]
[1721535395506,0.59626621,3516.0,3515.8,2.3537]
[1721535395818,0.59626621,3516.2,3516.1,5.19776]
[1721535396007,0.59626621,3516.2,3516.1,5.33069845]
[1721535396204,0.59626621,3516.2,3516.1,6.2321963]
[1721535396427,0.59626621,3516.3,3516.1,6.2321963]
[1721535397032,0.59626621,3516.2,3516.1,6.2321963]
[1721535397543,0.59626621,3516.3,3516.1,6.2321963]
[1721535398134,0.59626621,3516.3,3516.2,2.84397]
[1721535398346,0.59626621,3516.4,3516.3,2.3537]
[1721535398549,0.59626621,3516.5,3516.3,2.3537]
[1721535398745,0.59626621,3516.5,3516.3,2.48654586]
[1721535399447,0.59626621,3516.6,3516.3,2.48654586]
[1721535400844,0.59626621,3516.5,3516.3,2.48654586]
[1721535401448,0.59626621,3516.6,3516.3,2.48654586]
[1721535403422,0.59626621,3516.7,3516.3,2.48654586]
[1721535404715,0.59626621,3516.7,3516.4,2.8438]
[1721535405016,0.59626621,3516.7,3516.5,0.13280281]
[1721535410543,0.59626621,3516.8,3516.5,0.13280281]
[1721535411465,3.73669951,3517.0,3516.5,0.13280281]
[1721535411466,0.59626621,3516.9,3516.5,0.66583309]
[1721535411764,0.59626621,3517.0,3516.6,2.4992]
[1721535411939,0.59626621,3517.1,3516.6,2.4992]
[1721535412138,0.59626621,3517.1,3516.7,0.13271021]
[1721535412349,0.59626621,3517.2,3516.8,2.84348]
[1721535412723,0.59626621,3517.2,3516.9,0.13266717]
[1721535413542,0.59626621,3517.3,3516.9,0.13266717]
[1721535413936,0.59626621,3517.3,3517.0,2.4992]
[1721535414282,0.59626621,3517.3,3517.1,0.13262414]
[1721535415566,0.84,3517.3,3517.1,0.13262414]
[1721535415974,1.43626621,3517.3,3517.1,0.13262414]
[1721535416340,0.59626621,3517.3,3517.1,0.13262414]
[1721535416536,0.59626621,3517.4,3517.1,0.13262414]
[1721535417469,0.59626621,3517.7,3517.3,2.84308]
[1721535417646,0.59626621,3517.8,3517.4,2.4992]
[1721535417985,0.59626621,3517.8,3517.5,0.13250332]
[1721535418550,1.43626621,3517.9,3517.5,0.13250332]
[1721535419869,1.43626621,3517.9,3517.4,5.34213]
[1721535420077,1.43626621,3517.9,3517.6,0.13245661]
[1721535420246,1.43626621,3517.9,3517.5,0.13247812]
[1721535421284,0.84,3517.9,3517.5,0.13247812]
[1721535421487,1.43626621,3517.9,3517.5,0.13247812]
[1721535421786,0.84,3517.9,3517.5,0.13247812]
[1721535422184,4.27871621,3518.1,3517.5,3.52283893]
[1721535422488,3.68245,3518.1,3517.5,3.52283893]
[1721535423851,0.84,3518.1,3517.5,0.67993893]
[1721535424051,0.84,3518.1,3517.6,2.84282]
[1721535424256,0.84,3518.1,3517.7,0.13235258]
[1721535425057,3.43854621,3518.3,3517.7,0.13235258]
[1721535425360,0.84,3518.1,3517.8,2.4992]
[1721535425681,0.84,3518.1,3517.9,0.13229827]
[1721535426098,0.84,3518.1,3517.6,2.3794]
[1721535426920,0.84,3518.1,3517.7,0.13233173]
[1721535428762,4.27857621,3518.3,3517.7,0.13233173]
[1721535428996,2.84231,3518.3,3517.8,0.25685813]
[1721535429194,3.68218,3518.5,3517.8,0.25685813]
[1721535429362,4.27844621,3518.5,3517.9,0.13229479]
[1721535429777,3.43844621,3518.5,3517.9,0.13229479]
[1721535429962,3.68218,3518.5,3518.0,2.3794]
[1721535430174,3.68218,3518.5,3518.1,0.1322318]
[1721535432422,3.68218,3518.5,3518.0,2.3794]
[1721535435009,3.68218,3518.5,3518.1,0.1322318]
[1721535436818,0.59626621,3518.6,3518.1,0.1322318]
[1721535436998,2.84198,3518.7,3518.1,0.38339498]
[1721535437323,2.84198,3518.7,3518.2,2.3724]
[1721535437672,2.84198,3518.7,3518.3,0.13213928]
[1721535443677,0.59626621,3518.9,3518.4,2.3724]
[1721535443880,4.27794621,3519.1,3518.6,2.3724]
[1721535444177,4.27794621,3519.1,3518.7,0.13174795]
[1721535444178,0.84,3519.1,3518.7,0.13174795]
[1721535447404,3.68163,3519.1,3518.7,0.13174795]
[1721535449013,0.84,3518.9,3518.7,0.13174795]
[1721535452124,5.68374,3518.8,3518.7,0.13174795]
[1721535452425,6.336114,3518.8,3518.7,0.13174795]
[1721535452630,6.336114,3518.8,3518.2,7.45]
[1721535452631,5.68456,3518.3,3518.2,7.45]
[1721535452928,2.84284,3517.6,3517.5,7.45]
[1721535453249,3.68284,3517.6,3517.5,7.45]
[1721535454610,6.52568,3517.6,3517.5,7.45]
[1721535455113,2.84333,3517.0,3516.9,7.45]
[1721535455321,2.84344,3516.9,3516.5,2.2773]
[1721535455840,0.84,3517.0,3516.3,7.45]
[1721535455841,2.8435,3516.8,3516.3,7.45]
[1721535456050,3.6835,3516.8,3516.3,7.45]
[1721535456218,3.6835,3516.8,3516.4,1.279264]
[1721535457008,0.84,3516.8,3516.4,1.279264]
[1721535457349,0.84,3517.0,3516.4,1.279264]
[1721535459829,2.84331,3517.1,3516.4,1.279264]
[1721535460029,2.84331,3517.1,3516.5,1.1573154]
[1721535461269,2.84331,3517.1,3516.6,0.12365689]
[1721535462688,3.68317,3517.2,3516.6,0.12365689]
[1721535462855,2.84342,3516.9,3516.6,0.12365689]
[1721535463183,2.84342,3516.9,3516.3,7.45]
[1721535463184,0.84,3517.0,3516.3,7.45]
[1721535463388,0.84,3517.0,3516.7,0.12365936]
[1721535463686,0.84,3517.0,3516.8,0.12361377]
[1721535463881,0.84,3517.0,3516.4,1.279265]
[1721535464049,3.68334,3517.0,3516.5,0.12367834]
[1721535465376,2.84334,3517.0,3516.5,0.12367834]
[1721535465579,2.84334,3517.0,3516.5,1.29336867]
[1721535467283,2.84344,3516.9,3516.5,1.29336867]
[1721535467483,2.84344,3516.9,3516.5,0.12367834]
[1721535467668,2.84344,3516.9,3516.3,7.45]
[1721535467870,2.84344,3516.9,3516.4,0.12370595]
[1721535468043,2.84344,3516.9,3516.3,7.45]
[1721535468243,2.84344,3516.9,3516.4,1.40296281]
[1721535469163,2.84351,3516.8,3516.4,1.40296281]
[1721535470661,2.84351,3516.8,3516.4,0.12370681]
[1721535470988,2.84351,3516.8,3516.1,2.4986]
[1721535471157,2.84351,3516.8,3516.5,0.12368529]
[1721535471487,2.84351,3516.8,3516.6,0.12366377]
[1721535471679,2.84351,3516.8,3516.1,2.4986]
[1721535471985,2.84351,3516.8,3516.2,1.48702287]
[1721535480909,2.84358,3516.7,3516.2,1.48702287]
[1721535492309,2.84358,3516.7,3516.3,2.3096]
[1721535492505,2.84358,3516.7,3516.4,0.12375288]
[1721535492734,2.84358,3516.7,3516.3,2.3096]
[1721535493034,2.84358,3516.7,3516.4,0.12375288]
[1721535493230,2.84358,3516.7,3516.3,3.0453003]
[1721535493633,2.84358,3516.7,3516.4,0.12375288]
[1721535494014,2.84358,3516.7,3516.3,3.0453003]
[1721535494229,2.84346,3516.9,3516.5,0.12373135]
[1721535494431,2.84346,3516.9,3516.4,0.12375288]
[1721535494655,2.84346,3516.9,3516.5,0.12374178]
[1721535498149,0.59399143,3516.8,3516.5,0.12374178]
[1721535499278,0.59399143,3516.7,3516.5,0.12374178]
[1721535501157,0.59399143,3516.6,3516.5,0.12374178]
[1721535502786,0.59399143,3516.6,3516.5,0.92126367]
[1721535503391,0.59399143,3516.6,3516.5,3.23086367]
[1721535504262,0.59399143,3516.7,3516.5,3.23086367]
[1721535504848,0.59399143,3516.7,3516.6,5.15325]
[1721535505083,0.59399143,3516.8,3516.6,6.14186987]
[1721535505243,0.59399143,3516.8,3516.6,5.27695896]
[1721535505447,0.59399143,3516.8,3516.7,0.75114873]
[1721535505874,0.59399143,3516.8,3516.7,0.87483617]
[1721535506680,0.59399143,3516.9,3516.7,3.22573617]
[1721535506989,0.59399143,3516.8,3516.7,3.22573617]
[1721535507480,0.59399143,3516.9,3516.7,3.22573617]
[1721535508745,0.59399143,3516.9,3516.8,0.68669081]
[1721535508965,0.59399143,3516.9,3516.8,0.81035672]
[1721535509490,0.59399143,3516.9,3516.8,0.12366591]
[1721535509684,0.59399143,3516.9,3516.8,2.96715591]
[1721535509884,0.59399143,3517.0,3516.8,2.96715591]
[1721535510260,0.59399143,3517.0,3516.9,2.3509]
[1721535510676,0.59399143,3517.0,3516.9,2.47453483]
[1721535510973,0.59399143,3517.0,3516.9,3.36581719]
[1721535513981,0.59399143,3517.1,3516.9,3.36581719]
[1721535514850,0.59399143,3517.0,3516.9,6.20920719]
[1721535515057,0.59399143,3517.1,3516.9,6.20920719]
[1721535516255,0.59399143,3517.1,3516.9,3.36581719]
[1721535518119,0.59399143,3517.0,3516.9,3.36581719]
[1721535518284,0.59399143,3517.0,3516.9,2.47453483]
[1721535519734,0.59399143,3517.1,3516.9,2.47453483]
[1721535526437,0.59399143,3517.2,3516.9,2.47453483]
[1721535535645,0.59399143,3517.1,3516.9,2.47453483]
[1721535543360,0.59399143,3517.1,3516.9,0.12363483]
[1721535543580,0.59399143,3517.1,3516.7,2.3963]
[1721535543794,0.59399143,3517.1,3516.8,0.12364508]
[1721535544881,0.59399143,3517.0,3516.8,0.12364508]
[1721535546046,0.59399143,3516.9,3516.8,0.12364508]
[1721535546880,0.891065,3517.0,3516.8,0.12364508]
[1721535547262,2.84341,3516.9,3516.8,0.12364508]
[1721535548285,0.891065,3517.0,3516.8,0.12364508]
[1721535548508,0.59671349,3517.0,3516.8,0.12364508]
[1721535549467,0.59671349,3516.9,3516.8,0.12364508]
[1721535550163,0.59671349,3517.0,3516.8,2.98009574]
[1721535550477,0.59671349,3517.1,3516.8,2.98009574]
[1721535551792,0.59671349,3517.1,3517.0,2.84333]
[1721535552004,0.59671349,3517.2,3517.1,5.23075]
[1721535552173,0.59671349,3517.2,3517.1,5.35430252]
[1721535552390,0.891065,3517.4,3517.1,7.28750004]
[1721535552391,0.59671349,3517.4,3517.1,7.28750004]
[1721535552688,0.59671349,3517.4,3517.1,6.29905784]
[1721535553288,0.59671349,3517.5,3517.3,2.3875]
[1721535553598,1.19117952,3517.8,3517.4,0.12348798]
[1721535553599,0.59671349,3517.6,3517.4,0.12348798]
[1721535553797,0.59671349,3517.7,3517.5,2.3875]
[1721535554020,0.59671349,3517.7,3517.6,0.12340412]
[1721535555340,0.59671349,3517.8,3517.6,0.12340412]
[1721535557439,0.59671349,3517.9,3517.6,0.12340412]
[1721535558123,0.891065,3518.1,3517.7,5.12076]
[1721535558124,0.59671349,3518.0,3517.7,5.12076]
[1721535558501,0.59671349,3518.0,3517.8,0.12328346]
[1721535558808,1.19117952,3518.3,3518.0,2.84252]
[1721535558809,0.59671349,3518.1,3518.0,2.84252]
[1721535559007,0.59671349,3518.2,3518.0,2.96572917]
[1721535559324,0.59671349,3518.4,3518.0,2.96572917]
[1721535560318,0.59671349,3518.5,3518.0,2.96572917]
[1721535562440,4.27875349,3518.6,3518.0,2.96572917]
[1721535562945,4.27875349,3518.6,3518.0,3.77437809]
[1721535563449,1.43671349,3518.6,3518.0,3.77437809]
[1721535564638,0.84,3518.6,3518.0,3.77437809]
[1721535564807,0.84,3518.6,3518.1,2.4392]
[1721535565013,3.43873349,3518.7,3518.2,0.1231514]
[1721535567608,2.84202,3518.7,3518.2,0.1231514]
[1721535568043,1.43671349,3518.8,3518.2,0.1231514]
[1721535568251,1.43671349,3518.8,3518.2,0.74449543]
[1721535568443,1.43671349,3518.8,3518.2,3.58683543]
[1721535569345,4.27859349,3518.8,3518.2,3.58683543]
[1721535572464,3.68188,3518.8,3518.2,3.58683543]
[1721535573537,3.68188,3518.8,3518.3,2.2806]
[1721535573947,3.68188,3518.8,3518.4,0.12302066]
[1721535574955,3.43854349,3518.9,3518.4,0.12302066]
[1721535575145,2.84183,3518.9,3518.5,0.58672347]
[1721535575513,2.84183,3518.9,3518.6,0.12297766]
[1721535575719,0.84,3518.8,3518.6,0.12297766]
[1721535576050,0.84,3518.8,3518.3,5.12286]
[1721535576255,0.84,3518.8,3518.7,0.12295616]
[1721535576441,0.84,3518.8,3518.3,2.2806]
[1721535576755,0.84,3518.8,3518.7,0.12295616]
[1721535576925,0.84,3518.8,3518.3,2.2806]
[1721535577251,0.84,3518.8,3518.4,0.12302066]
[1721535579272,0.84,3518.8,3518.4,0.64761873]
[1721535580683,3.68188,3518.8,3518.4,0.12302066]
[1721535581052,2.3132,3518.7,3518.4,0.12302066]
[1721535581387,3.68207,3518.6,3517.9,9.7306]
[1721535581578,2.84207,3518.6,3518.0,0.12307631]
[1721535581883,2.84207,3518.6,3518.1,1.26962663]
[1721535582251,2.84207,3518.6,3518.2,0.1230333]
[1721535582856,2.84207,3518.6,3517.9,12.57319]
[1721535583054,2.84207,3518.6,3518.3,0.1230118]
[1721535583255,2.84207,3518.6,3517.9,12.57319]
[1721535583566,2.84207,3518.6,3518.0,1.541595]
[1721535583750,2.84207,3518.6,3518.1,0.12305481]
[1721535584580,2.8419,3518.8,3518.1,2.96545481]
[1721535584855,2.8419,3518.8,3518.2,2.2806]
[1721535585257,3.68195,3518.7,3518.3,0.1230118]
[1721535591705,2.84204,3518.6,3518.3,0.1230118]
[1721535595480,3.43875349,3518.6,3518.3,0.1230118]
[1721535597296,0.59671349,3518.5,3518.3,0.1230118]
[1721535599537,3.43891349,3518.4,3518.3,0.1230118]
[1721535599761,0.59671349,3518.4,3518.3,0.1230118]
[1721535602339,0.891065,3518.5,3518.3,0.1230118]
[1721535603307,0.891065,3518.5,3518.3,2.4581118]
[1721535603513,0.59707588,3518.4,3518.3,2.78792298]
[1721535604346,0.891065,3518.5,3518.3,2.4581118]
[1721535607261,0.59720728,3518.4,3518.3,2.4581118]
[1721535607465,0.891065,3518.5,3518.3,2.4581118]
[1721535607961,0.59720788,3518.4,3518.3,2.4581118]
[1721535608630,0.59720788,3518.4,3518.3,5.3003918]
[1721535608830,0.59720788,3518.4,3518.3,6.11467398]
[1721535610873,0.59720788,3518.5,3518.3,6.11467398]
[1721535611099,0.59720788,3518.5,3518.3,3.27239398]
[1721535611291,0.59720788,3518.4,3518.3,3.27239398]
[1721535612237,0.59720788,3518.4,3518.3,2.4581118]
[1721535615267,0.59720788,3518.4,3518.3,5.3003918]
[1721535616167,1.19117952,3518.7,3518.4,5.1922]
[1721535616168,0.59720788,3518.5,3518.4,5.1922]
[1721535616487,0.891065,3518.7,3518.6,2.35]
[1721535616488,0.59720788,3518.7,3518.6,2.35]
[1721535616840,0.59720788,3518.7,3518.6,2.47292646]
[1721535618272,0.59720788,3518.7,3518.6,6.13068111]
[1721535618644,0.59720788,3518.7,3518.6,3.28865111]
[1721535618848,0.59720788,3518.7,3518.6,2.47292646]
[1721535619586,0.59720788,3518.8,3518.6,2.47292646]
[1721535629599,0.59720788,3518.9,3518.6,0.12292646]
[1721535629926,0.891065,3519.0,3518.3,5.13207]
[1721535629927,0.59720788,3518.8,3518.3,5.13207]
[1721535630106,0.59720788,3518.8,3518.7,0.12289019]
[1721535630261,0.59720788,3518.8,3518.3,5.13207]
[1721535630461,0.59720788,3518.8,3518.4,0.12295469]
[1721535631879,0.59720788,3518.8,3518.4,0.15862568]
[1721535632386,0.59720788,3518.8,3518.4,3.00081568]
[1721535643812,0.59720788,3518.8,3518.5,2.84211]
[1721535644116,0.59720788,3518.8,3518.6,0.15858321]
[1721535648028,0.59720788,3518.8,3518.6,3.00061321]
[1721535649733,0.59720788,3518.8,3518.7,2.84195]
[1721535649947,0.59720788,3518.8,3518.7,5.51110332]
[1721535650134,0.59720788,3518.9,3518.7,5.66966401]
[1721535650452,0.59720788,3518.9,3518.7,5.36961069]
[1721535650612,0.891065,3519.0,3518.7,5.36961069]
[1721535650613,0.59720788,3518.8,3518.7,5.36961069]
[1721535657074,0.59720788,3518.8,3518.7,3.00051069]
[1721535658769,0.891065,3518.9,3518.7,0.15856069]
[1721535659062,0.891065,3518.9,3518.5,2.84211]
[1721535659063,0.59704921,3518.8,3518.5,2.84211]
[1721535659252,0.59704921,3518.8,3518.6,0.15858147]
[1721535659451,0.59704921,3518.7,3518.6,0.15858147]
[1721535660943,0.59704921,3518.7,3518.6,3.00061147]
[1721535667055,0.59704921,3518.7,3518.6,5.40771147]
[1721535673565,0.59704921,3518.7,3518.6,6.46100933]
[1721535678849,0.59704921,3518.7,3518.6,0.15858147]
[1721535679142,2.84203,3518.6,3518.0,7.45]
[1721535679382,2.8417,3519.1,3518.0,7.45]
[1721535679383,0.89613407,3518.1,3518.0,7.45]
[1721535679871,0.89556787,3518.1,3518.0,7.45]
[1721535680036,4.33204543,3518.2,3518.0,7.45]
[1721535680435,0.89512653,3518.1,3518.0,7.45]
[1721535681052,4.03232653,3518.2,3518.0,7.45]
[1721535681449,0.5965471,3518.1,3518.0,7.45]
[1721535683355,0.5965471,3518.2,3518.0,7.45]
[1721535683550,4.03232653,3518.4,3518.0,7.45]
[1721535683551,0.5965471,3518.3,3518.0,7.45]
[1721535684387,0.89512653,3518.5,3518.0,7.45]
[1721535684388,0.5965471,3518.5,3518.0,7.45]
[1721535684741,0.5965471,3518.5,3517.9,2.4196]
[1721535684981,0.5965471,3518.5,3517.9,3.774828]
[1721535685137,0.5965471,3518.4,3517.9,6.617368]
[1721535686386,0.5965471,3518.4,3518.0,0.14284916]
[1721535689672,0.5965471,3518.5,3518.0,0.14284916]
[1721535689874,0.5965471,3518.4,3518.0,0.14284916]
[1721535690096,0.5965471,3518.5,3518.0,0.14284916]
[1721535691685,2.9352471,3518.5,3518.0,0.14284916]
[1721535694110,0.5965471,3518.5,3518.0,2.98536916]
[1721535696223,0.5965471,3518.5,3518.1,2.84243]
[1721535696423,0.5965471,3518.6,3518.1,2.98388255]
[1721535699100,0.5965471,3518.6,3518.1,3.80849681]
[1721535705822,0.5965471,3518.5,3518.1,3.80849681]
[1721535705995,0.5965471,3518.5,3518.1,2.98388255]
[1721535707599,4.2786671,3518.5,3518.1,0.14145255]
[1721535707827,4.2786671,3518.5,3517.9,5.26215]
[1721535708352,4.2786671,3518.5,3518.0,0.14142979]
[1721535708638,0.5965471,3518.4,3518.0,0.14142979]
[1721535709360,4.2786671,3518.5,3518.0,0.14142979]
[1721535709565,0.5965471,3518.4,3518.0,0.14142979]
[1721535710068,4.2786671,3518.5,3518.0,0.14142979]
[1721535710563,0.5965471,3518.4,3518.0,0.14142979]
[1721535712765,1.4365471,3518.5,3518.0,0.14142979]
[1721535714465,0.5965471,3518.4,3518.0,0.14142979]
[1721535715331,4.2786771,3518.5,3518.0,0.14142979]
[1721535715528,0.5965471,3518.4,3518.0,0.14142979]
[1721535716752,2.84228,3518.3,3518.0,0.14142979]
[1721535716950,2.84228,3518.3,3517.6,12.60933]
[1721535717134,2.84228,3518.3,3517.7,0.14149907]
[1721535717348,3.4388271,3518.3,3517.7,0.14149907]
[1721535717949,2.84228,3518.3,3517.7,0.14149907]
[1721535718483,3.4388271,3518.3,3517.7,0.14149907]
[1721535720231,0.5965471,3518.2,3517.7,0.14149907]
[1721535721001,0.5965471,3518.2,3517.7,1.39087679]
[1721535723455,0.5965471,3518.1,3517.7,1.39087679]
[1721535723874,0.5965471,3518.1,3517.8,2.3165]
[1721535724196,0.5965471,3518.1,3517.8,2.4579919]
[1721535724494,0.5965471,3518.1,3517.8,3.17271251]
[1721535725276,0.5965471,3518.1,3517.8,3.69886251]
[1721535725492,0.5965471,3518.2,3517.9,2.3165]
[1721535725857,0.5965471,3518.2,3518.0,0.14145027]
[1721535726902,0.5965471,3518.1,3518.0,0.14145027]
[1721535727509,0.5965471,3518.2,3518.0,0.14145027]
[1721535729265,0.5965471,3518.1,3518.0,0.14145027]
[1721535729471,0.5965471,3518.2,3518.0,0.14145027]
[1721535729878,0.5965471,3518.1,3518.0,0.14145027]
[1721535730396,0.5965471,3518.1,3518.0,6.049803]
[1721535731064,0.5965471,3518.1,3518.0,3.207283]
[1721535731281,0.5965471,3518.1,3518.0,2.54605027]
[1721535734200,0.5965471,3518.2,3518.0,2.54605027]
[1721535734816,0.5965471,3518.1,3518.0,2.54605027]
[1721535738373,0.89512653,3518.2,3518.0,2.54605027]
[1721535740303,0.89512653,3518.2,3518.0,0.14145027]
[1721535740704,0.89512653,3518.2,3517.8,5.21858]
[1721535740900,0.89512653,3518.2,3518.1,0.14140815]
[1721535741122,0.89512653,3518.2,3517.8,2.3759]
[1721535741322,4.03718543,3518.3,3518.1,0.14140815]
[1721535741472,5.20287391,3518.3,3517.8,2.3759]
[1721535741676,0.5972892,3517.9,3517.8,2.3759]
[1721535741874,0.8959338,3518.0,3517.8,2.3759]
[1721535742105,0.8959338,3518.0,3517.5,2.3759]
[1721535742312,3.7387038,3517.7,3517.3,7.45]
[1721535742510,3.7387038,3517.7,3517.2,2.3759]
[1721535742511,0.59688764,3517.5,3517.2,5.21905]
[1721535742718,0.59688764,3517.6,3517.2,5.5492566]
[1721535743020,0.59688764,3517.5,3517.2,5.5492566]
[1721535743515,0.59688764,3517.6,3517.2,5.5492566]
[1721535743878,0.59688764,3517.7,3517.2,5.5492566]
[1721535745107,0.59688764,3517.7,3517.5,2.84286]
[1721535745316,0.59688764,3517.9,3517.6,1.361876]
[1721535745494,0.59688764,3517.9,3517.7,2.3759]
[1721535745817,0.59688764,3518.0,3517.7,5.2186]
[1721535746192,0.59688764,3518.0,3517.8,0.13674206]
[1721535747912,0.59688764,3518.0,3517.9,5.334]
[1721535748101,1.49139295,3518.5,3517.9,6.01726181]
[1721535748102,0.59688764,3518.2,3517.9,6.01726181]
[1721535748422,0.59688764,3518.3,3517.9,6.15398135]
[1721535748633,0.59688764,3518.2,3517.9,5.47071954]
[1721535748790,0.59688764,3518.3,3517.9,5.47071954]
[1721535748994,0.59688764,3518.2,3517.9,5.47071954]
[1721535752633,0.59688764,3518.2,3517.9,0.13671954]
[1721535752925,4.5781338,3518.4,3517.9,0.13671954]
[1721535752926,0.59688764,3518.1,3517.9,0.13671954]
[1721535753137,0.59688764,3518.1,3517.7,2.84275]
[1721535753333,0.59688764,3518.1,3518.0,0.13669701]
[1721535753830,0.59688764,3518.1,3517.7,2.84275]
[1721535754049,0.59688764,3518.1,3518.0,0.13669189]
[1721535754336,0.59688764,3518.1,3517.7,2.84275]
[1721535754546,0.59688764,3518.1,3518.0,0.13669189]
[1721535755124,0.59688764,3518.1,3517.7,2.84275]
[1721535755331,0.59688764,3518.1,3518.0,0.13669189]
[1721535755834,0.59688764,3518.1,3517.7,2.84275]
[1721535756135,0.59688764,3518.1,3518.0,0.13669189]
[1721535756640,0.59688764,3518.1,3517.7,2.84275]
[1721535756843,0.59688764,3518.1,3518.0,0.13669189]
[1721535757027,0.59688764,3518.1,3517.7,2.84275]
[1721535757340,0.59688764,3518.1,3518.0,0.13669189]
[1721535757541,0.59688764,3518.1,3517.7,3.729276]
[1721535757542,0.59688764,3518.1,3517.7,2.84275]
[1721535757757,0.59688764,3518.1,3518.0,0.13669189]
[1721535757963,0.59688764,3518.1,3517.7,2.84275]
[1721535758120,0.59688764,3518.1,3518.0,0.13669189]
[1721535758319,0.59688764,3518.1,3517.7,2.84275]
[1721535758556,0.59688764,3518.1,3518.0,0.13665863]
[1721535758760,0.59688764,3518.1,3517.7,2.84275]
[1721535758926,0.59688764,3518.1,3518.0,0.13665863]
[1721535759127,0.59688764,3518.1,3517.7,2.84275]
[1721535759330,0.59688764,3518.1,3518.0,0.13665863]
[1721535759530,0.59688764,3518.1,3517.7,2.84275]
[1721535759757,0.59688764,3518.1,3518.0,0.13665863]
[1721535759958,0.59688764,3518.1,3517.7,2.84275]
[1721535760169,0.59688764,3518.1,3518.0,0.13665863]
[1721535760338,0.59688764,3518.1,3517.7,2.84275]
[1721535760859,0.59688764,3518.1,3517.8,0.13670367]
[1721535762167,0.59688764,3518.1,3517.8,2.47630367]
[1721535762666,0.59688764,3518.1,3517.8,3.29250004]
[1721535764657,0.59688764,3518.1,3517.8,6.13517004]
[1721535765039,0.59688764,3518.2,3517.8,6.13517004]
[1721535766474,0.59688764,3518.1,3517.8,6.13517004]
[1721535768781,0.59688764,3518.2,3517.8,6.13517004]
[1721535768997,0.59688764,3518.2,3517.8,5.31897367]
[1721535769494,0.59688764,3518.1,3517.8,5.31897367]
[1721535770395,0.59688764,3518.2,3517.8,5.31897367]
[1721535771292,0.59688764,3518.1,3517.8,5.31897367]
[1721535771696,0.59688764,3518.1,3517.8,2.47630367]
[1721535772099,0.59688764,3518.1,3517.8,0.13670367]
[1721535772468,0.59688764,3518.1,3517.6,2.4683]
[1721535772681,0.59688764,3518.1,3517.9,0.13665122]
[1721535772905,0.59688764,3518.1,3517.6,2.4683]
[1721535773082,0.59688764,3518.1,3518.0,0.13663041]
[1721535773283,0.59688764,3518.1,3517.6,5.31112]
[1721535773482,0.59688764,3518.1,3518.0,0.13663041]
[1721535773725,0.59688764,3518.1,3517.6,5.31112]
[1721535773886,0.59688764,3518.1,3518.0,0.13663041]
[1721535774393,0.59688764,3518.2,3517.6,5.31112]
[1721535774578,0.59688764,3518.2,3517.7,0.1367065]
[1721535774788,0.59688764,3518.1,3517.7,0.1367065]
[1721535782910,0.59688764,3518.0,3517.7,0.1367065]
[1721535784336,0.59688764,3518.1,3517.7,0.1367065]
[1721535784705,0.59688764,3518.0,3517.7,0.1367065]
[1721535790448,0.59688764,3517.9,3517.7,0.1367065]
[1721535792250,0.59688764,3517.9,3517.7,2.9794665]
[1721535792409,0.59688764,3518.0,3517.8,2.84267]
[1721535792611,0.59688764,3518.0,3517.9,0.13666659]
[1721535793087,0.59688764,3518.0,3517.9,2.50246659]
[1721535793460,0.59688764,3518.1,3518.0,2.84252]
[1721535793782,0.59688764,3518.5,3518.3,5.20808]
[1721535794119,0.8959338,3518.6,3518.4,0.13655997]
[1721535795391,0.59693789,3518.5,3518.4,0.13655997]
[1721535795888,0.8959338,3518.6,3518.0,5.99149794]
[1721535796095,0.59693025,3518.4,3518.0,5.99149794]
[1721535796249,0.59693025,3518.4,3518.1,0.94310944]
[1721535803994,0.59693025,3518.3,3518.1,0.94310944]
[1721535804192,0.59693025,3518.4,3518.1,0.94310944]
[1721535804393,0.59693025,3518.4,3518.0,3.14902794]
[1721535806309,0.59693025,3518.4,3518.1,0.13202465]
[1721535806923,4.27921025,3518.3,3518.1,0.13202465]
[1721535807124,4.27921025,3518.3,3517.6,7.45]
[1721535807125,2.84236,3518.2,3517.6,7.45]
[1721535807325,0.59640125,3517.9,3517.6,7.45]
[1721535808196,0.59640125,3517.8,3517.6,7.45]
[1721535808624,0.59640125,3518.0,3517.6,7.45]
[1721535809700,0.59640125,3518.0,3517.5,2.3844]
[1721535810837,0.59640125,3518.1,3517.5,2.3844]
[1721535811904,0.59640125,3518.0,3517.5,5.22731]
[1721535812642,0.59640125,3518.1,3517.5,5.22731]
[1721535814313,0.59640125,3518.1,3517.6,2.84281]
[1721535814633,0.59640125,3518.1,3517.7,2.84276]
[1721535814814,0.59640125,3518.2,3517.7,2.84276]
[1721535816618,0.59640125,3518.1,3517.7,2.84276]
[1721535818133,0.59640125,3518.2,3517.7,2.84276]
[1721535818642,0.59640125,3518.1,3517.7,2.84276]
[1721535819537,0.59640125,3518.2,3517.7,2.84276]
[1721535820654,0.59640125,3518.2,3517.8,2.84267]
[1721535821358,3.7381338,3518.4,3517.9,0.1321064]
[1721535821359,0.59640125,3518.3,3517.9,0.1321064]
[1721535821533,0.59640125,3518.2,3517.9,0.1321064]
[1721535821734,0.59640125,3518.3,3517.9,0.1321064]
[1721535821927,0.59640125,3518.2,3517.9,0.1321064]
[1721535824147,0.59640125,3518.3,3517.9,0.1321064]
[1721535824553,0.59640125,3518.2,3517.9,0.1321064]
[1721535824925,0.59640125,3518.3,3517.9,0.1321064]
[1721535825660,0.59640125,3518.2,3517.9,0.1321064]
[1721535825955,0.59640125,3518.3,3517.9,2.9747064]
[1721535826727,0.59640125,3518.3,3518.0,2.8425]
[1721535827039,0.59640125,3518.3,3518.1,0.13206135]
[1721535827232,0.59640125,3518.2,3518.1,0.13206135]
[1721535832737,3.68204,3518.6,3518.1,0.13206135]
[1721535833050,0.608264,3518.5,3518.1,0.13206135]
[1721535835973,0.84,3518.4,3517.8,5.20603]
[1721535836471,0.84,3518.4,3517.9,0.13209446]
[1721535836652,0.84,3518.4,3518.1,2.00154959]
[1721535836872,0.84,3518.4,3518.2,0.1320269]
[1721535839000,3.68204,3518.6,3518.2,0.1320269]
[1721535840368,2.84204,3518.6,3518.2,0.1320269]
[1721535840568,2.84204,3518.6,3518.2,2.4311269]